[Event "NJSK 2021 Jeugd C"]
[Site "Almelo, Netherlands"]
[Date "2021.08.03"]
[Round "4.6"]
[White "Zecha, Oscar"]
[Black "Ponomarev, Ivan"]
[Result "1-0"]
[TimeControl "90min + 30sec/move"]
[WhiteElo "1650"]
[BlackElo "1723"]

1. d4 {[%clk 01:30:57]} {[%emt 00:00:03]} Nf6 {[%clk 01:30:55]} {[%emt
00:00:05]} 2. c4 {[%clk 01:31:24]} {[%emt 00:00:04]} e6 {[%clk 01:31:22]}
{[%emt 00:00:02]} 3. Nf3 {[%clk 01:31:49]} {[%emt 00:00:05]} Bb4+ {[%clk
01:31:42]} {[%emt 00:00:10]} 4. Bd2 {[%clk 01:32:08]} {[%emt 00:00:11]} a5
{[%clk 01:30:58]} {[%emt 00:01:14]} 5. g3 {[%clk 01:30:30]} {[%emt 00:02:08]}
d5 {[%clk 01:28:57]} {[%emt 00:02:31]} 6. Bg2 {[%clk 01:30:24]} {[%emt
00:00:35]} O-O {[%clk 01:27:08]} {[%emt 00:02:19]} 7. O-O {[%clk 01:30:08]}
{[%emt 00:00:46]} b6 {[%clk 01:23:43]} {[%emt 00:03:56]} 8. Nc3 {[%clk
01:28:05]} {[%emt 00:02:34]} Bb7 {[%clk 01:21:37]} {[%emt 00:02:35]} 9. Ne5
{[%clk 01:27:02]} {[%emt 00:01:33]} Nc6 {[%clk 01:16:55]} {[%emt 00:05:08]} 10.
Bg5 {[%clk 01:22:44]} {[%emt 00:04:51]} Bxc3 {[%clk 01:14:04]} {[%emt
00:03:22]} 11. bxc3 {[%clk 01:22:55]} {[%emt 00:00:18]} h6 {[%clk 01:13:02]}
{[%emt 00:01:32]} 12. Bxf6 {[%clk 01:21:42]} {[%emt 00:01:43]} Qxf6 {[%clk
01:13:05]} {[%emt 00:00:29]} 13. Nd7 {[%clk 01:21:18]} {[%emt 00:00:53]} Qf5
{[%clk 01:11:42]} {[%emt 00:01:54]} 14. Nxf8 {[%clk 01:21:19]} {[%emt
00:00:28]} Rxf8 {[%clk 01:12:06]} {[%emt 00:00:06]} 15. Rb1 {[%clk 01:20:04]}
{[%emt 00:01:45]} Ba6 {[%clk 01:09:10]} {[%emt 00:03:26]} 16. cxd5 {[%clk
01:18:57]} {[%emt 00:01:36]} exd5 {[%clk 01:09:35]} {[%emt 00:00:06]} 17. Re1
{[%clk 01:18:00]} {[%emt 00:01:27]} Re8 {[%clk 01:08:33]} {[%emt 00:01:31]} 18.
Rb2 {[%clk 01:09:18]} {[%emt 00:09:13]} Bc4 {[%clk 00:57:59]} {[%emt 00:11:04]}
19. Rd2 {[%clk 01:00:30]} {[%emt 00:09:18]} Na7 {[%clk 00:54:23]} {[%emt
00:04:06]} 20. Qc2 {[%clk 00:58:01]} {[%emt 00:02:58]} Qd7 {[%clk 00:53:33]}
{[%emt 00:01:19]} 21. e4 {[%clk 00:55:15]} {[%emt 00:03:16]} c6 {[%clk
00:53:02]} {[%emt 00:01:02]} 22. Rdd1 {[%clk 00:53:12]} {[%emt 00:02:34]} Nc8
{[%clk 00:49:06]} {[%emt 00:04:26]} 23. h4 {[%clk 00:47:37]} {[%emt 00:06:04]}
dxe4 {[%clk 00:47:32]} {[%emt 00:02:04]} 24. Bxe4 {[%clk 00:43:59]} {[%emt
00:04:08]} Nd6 {[%clk 00:47:19]} {[%emt 00:00:44]} 25. Bg2 {[%clk 00:43:50]}
{[%emt 00:00:38]} Rxe1+ {[%clk 00:45:58]} {[%emt 00:01:51]} 26. Rxe1 {[%clk
00:44:11]} {[%emt 00:00:08]} b5 {[%clk 00:45:30]} {[%emt 00:00:59]} 27. Re5
{[%clk 00:41:25]} {[%emt 00:03:16]} a4 {[%clk 00:43:28]} {[%emt 00:02:34]} 28.
Rc5 {[%clk 00:41:26]} {[%emt 00:00:27]} Qe6 {[%clk 00:41:17]} {[%emt 00:02:38]}
29. Rxc6 {[%clk 00:39:43]} {[%emt 00:02:17]} Bxa2 {[%clk 00:40:33]} {[%emt
00:01:15]} 30. Rxd6 {[%clk 00:38:37]} {[%emt 00:01:35]} Qxd6 {[%clk 00:40:45]}
{[%emt 00:00:17]} 31. Qxa2 {[%clk 00:38:57]} {[%emt 00:00:11]} b4 {[%clk
00:36:02]} {[%emt 00:05:12]} 32. Qxa4 {[%clk 00:36:40]} {[%emt 00:02:49]} bxc3
{[%clk 00:36:17]} {[%emt 00:00:14]} 33. Qe8+ {[%clk 00:36:40]} {[%emt
00:00:30]} 1-0

[Event "NJSK 2021 Jeugd C"]
[Site "Almelo, Netherlands"]
[Date "2021.08.03"]
[Round "4.7"]
[White "Kien, Lancelot"]
[Black "Madularea, David"]
[Result "0-1"]
[TimeControl "90min + 30sec/move"]
[WhiteElo "1650"]
[BlackElo "1656"]

1. e4 {[%clk 01:30:59]} c5 {[%clk 01:30:54]} {[%emt 00:00:06]} 2. Nf3 {[%clk
01:31:23]} {[%emt 00:00:06]} d6 {[%clk 01:31:19]} {[%emt 00:00:06]} 3. d4
{[%clk 01:31:51]} {[%emt 00:00:02]} cxd4 {[%clk 01:31:45]} {[%emt 00:00:04]} 4.
Nxd4 {[%clk 01:32:17]} {[%emt 00:00:03]} Nf6 {[%clk 01:32:08]} {[%emt
00:00:07]} 5. Nc3 {[%clk 01:32:44]} {[%emt 00:00:04]} a6 {[%clk 01:32:27]}
{[%emt 00:00:11]} 6. Be3 {[%clk 01:32:54]} {[%emt 00:00:19]} e5 {[%clk
01:32:39]} {[%emt 00:00:18]} 7. Nb3 {[%clk 01:33:04]} {[%emt 00:00:20]} Be6
{[%clk 01:32:46]} {[%emt 00:00:21]} 8. f3 {[%clk 01:33:00]} {[%emt 00:00:36]}
h5 {[%clk 01:32:43]} {[%emt 00:00:32]} 9. Qd2 {[%clk 01:32:08]} {[%emt
00:01:24]} Be7 {[%clk 01:32:00]} {[%emt 00:01:12]} 10. O-O-O {[%clk 01:31:13]}
{[%emt 00:01:24]} Nbd7 {[%clk 01:31:02]} {[%emt 00:01:29]} 11. Bg5 {[%clk
01:04:39]} {[%emt 00:27:03]} Rc8 {[%clk 01:26:34]} {[%emt 00:04:59]} 12. f4
{[%clk 01:02:39]} {[%emt 00:02:31]} b5 {[%clk 01:19:02]} {[%emt 00:08:00]} 13.
f5 {[%clk 01:00:01]} {[%emt 00:03:09]} Bxb3 {[%clk 01:18:23]} {[%emt 00:01:09]}
14. axb3 {[%clk 00:59:27]} {[%emt 00:01:04]} Qa5 {[%clk 01:17:36]} {[%emt
00:01:18]} 15. Kb1 {[%clk 00:59:27]} {[%emt 00:00:29]} b4 {[%clk 01:16:41]}
{[%emt 00:01:25]} 16. Na4 {[%clk 00:59:29]} {[%emt 00:00:28]} Nxe4 {[%clk
01:16:41]} {[%emt 00:00:28]} 17. Qe3 {[%clk 00:58:54]} {[%emt 00:01:07]} Nxg5
{[%clk 01:16:20]} {[%emt 00:00:50]} 18. Qa7 {[%clk 00:58:19]} {[%emt 00:01:07]}
Qc7 {[%clk 01:09:31]} {[%emt 00:07:18]} 0-1

[Event "NJSK 2021 Jeugd C"]
[Site "Almelo, Netherlands"]
[Date "2021.08.03"]
[Round "4.8"]
[White "Kumar, Prayan Sai"]
[Black "Verheij, Dana"]
[Result "1/2-1/2"]
[TimeControl "90min + 30sec/move"]
[WhiteElo "1652"]
[BlackElo "1931"]

1. d4 {[%clk 01:30:56]} {[%emt 00:00:04]} Nf6 {[%clk 01:30:52]} {[%emt
00:00:08]} 2. c4 {[%clk 01:31:13]} {[%emt 00:00:13]} c5 {[%clk 01:30:59]}
{[%emt 00:00:23]} 3. d5 {[%clk 01:31:25]} {[%emt 00:00:18]} b5 {[%clk
01:30:50]} {[%emt 00:00:39]} 4. Nd2 {[%clk 01:30:59]} {[%emt 00:00:56]} bxc4
{[%clk 01:30:38]} {[%emt 00:00:42]} 5. e4 {[%clk 01:30:54]} {[%emt 00:00:36]}
g6 {[%clk 01:30:16]} {[%emt 00:00:51]} 6. Bxc4 {[%clk 01:30:52]} {[%emt
00:00:32]} Bg7 {[%clk 01:29:56]} {[%emt 00:00:51]} 7. Ngf3 {[%clk 01:28:19]}
{[%emt 00:03:03]} O-O {[%clk 01:29:31]} {[%emt 00:00:55]} 8. O-O {[%clk
01:27:21]} {[%emt 00:01:27]} d6 {[%clk 01:26:40]} {[%emt 00:03:21]} 9. Rb1
{[%clk 01:24:43]} {[%emt 00:03:08]} Ba6 {[%clk 01:24:30]} {[%emt 00:02:40]} 10.
b3 {[%clk 01:21:00]} {[%emt 00:04:14]} Qa5 {[%clk 01:17:59]} {[%emt 00:07:01]}
11. Qc2 {[%clk 01:15:37]} {[%emt 00:05:53]} Nbd7 {[%clk 01:16:38]} {[%emt
00:01:50]} 12. h3 {[%clk 01:14:26]} {[%emt 00:01:42]} Nh5 {[%clk 01:15:00]}
{[%emt 00:02:07]} 13. Bxa6 {[%clk 01:08:32]} {[%emt 00:06:25]} Qxa6 {[%clk
01:14:44]} {[%emt 00:00:46]} 14. Nc4 {[%clk 01:06:05]} {[%emt 00:02:56]} Rab8
{[%clk 01:11:19]} {[%emt 00:03:54]} 15. Re1 {[%clk 00:55:39]} {[%emt 00:10:56]}
Nb6 {[%clk 01:05:43]} {[%emt 00:06:07]} 16. Bd2 {[%clk 00:49:58]} {[%emt
00:06:11]} Nxc4 {[%clk 01:02:33]} {[%emt 00:03:40]} 17. bxc4 {[%clk 00:49:52]}
{[%emt 00:00:37]} Rfe8 {[%clk 00:58:47]} {[%emt 00:04:15]} 18. Rb3 {[%clk
00:42:54]} {[%emt 00:07:28]} Nf6 {[%clk 00:46:08]} {[%emt 00:13:10]} 19. e5
{[%clk 00:41:29]} {[%emt 00:01:55]} Nd7 {[%clk 00:45:32]} {[%emt 00:01:05]} 20.
e6 {[%clk 00:41:01]} {[%emt 00:00:58]} Ne5 {[%clk 00:43:18]} {[%emt 00:02:44]}
21. Nxe5 {[%clk 00:39:18]} {[%emt 00:02:13]} Bxe5 {[%clk 00:43:17]} {[%emt
00:00:31]} 22. f4 {[%clk 00:35:22]} {[%emt 00:04:26]} Bd4+ {[%clk 00:42:44]}
{[%emt 00:01:02]} 23. Kh1 {[%clk 00:34:07]} {[%emt 00:01:46]} fxe6 {[%clk
00:36:40]} {[%emt 00:06:33]} 24. Rxe6 {[%clk 00:32:22]} {[%emt 00:02:16]} Qa4
{[%clk 00:34:57]} {[%emt 00:02:11]} 25. Rxb8 {[%clk 00:31:48]} {[%emt
00:01:07]} Qxc2 {[%clk 00:34:10]} {[%emt 00:01:16]} 26. Rxe8+ {[%clk 00:32:15]}
{[%emt 00:00:04]} Kg7 {[%clk 00:32:20]} {[%emt 00:02:16]} 27. R8xe7+ {[%clk
00:30:53]} {[%emt 00:01:56]} Kh6 {[%emt 00:00:44]} 1/2-1/2

[Event "NJSK 2021 Jeugd C"]
[Site "Almelo, Netherlands"]
[Date "2021.08.03"]
[Round "4.9"]
[White "Pancharajah, Abisan"]
[Black "Katpatal, Akshaj"]
[Result "1/2-1/2"]
[TimeControl "90min + 30sec/move"]
[WhiteElo "1650"]
[BlackElo "1650"]

1. e4 {[%clk 01:30:56]} {[%emt 00:00:03]} e5 {[%clk 01:30:56]} {[%emt
00:00:04]} 2. Nf3 {[%clk 01:31:23]} {[%emt 00:00:04]} Nc6 {[%clk 01:30:48]}
{[%emt 00:00:38]} 3. Bb5 {[%clk 01:29:05]} {[%emt 00:02:48]} Bc5 {[%clk
01:30:19]} {[%emt 00:00:59]} 4. c3 {[%clk 01:25:41]} {[%emt 00:03:53]} d6
{[%clk 01:29:49]} {[%emt 00:01:02]} 5. d4 {[%clk 01:24:48]} {[%emt 00:01:22]}
exd4 {[%clk 01:30:14]} {[%emt 00:00:05]} 6. cxd4 {[%clk 01:25:12]} {[%emt
00:00:06]} Bb4+ {[%clk 01:30:42]} {[%emt 00:00:02]} 7. Bd2 {[%clk 01:25:03]}
{[%emt 00:00:40]} Bxd2+ {[%clk 01:31:04]} {[%emt 00:00:07]} 8. Nbxd2 {[%clk
01:25:27]} {[%emt 00:00:06]} Bd7 {[%clk 01:31:22]} {[%emt 00:00:10]} 9. O-O
{[%clk 01:25:43]} {[%emt 00:00:14]} Nge7 {[%clk 01:31:29]} {[%emt 00:00:24]} 10.
Re1 {[%clk 01:25:21]} {[%emt 00:00:52]} O-O {[%clk 01:31:47]} {[%emt 00:00:12]}
11. h3 {[%clk 01:25:37]} {[%emt 00:00:15]} a6 {[%clk 01:30:51]} {[%emt
00:01:25]} 12. Bd3 {[%clk 01:25:47]} {[%emt 00:00:16]} Ng6 {[%clk 01:30:49]}
{[%emt 00:00:37]} 13. a3 {[%clk 01:25:56]} {[%emt 00:00:21]} f5 {[%clk
01:30:46]} {[%emt 00:00:32]} 14. Qc2 {[%clk 01:22:10]} {[%emt 00:04:16]} Nf4
{[%clk 01:30:49]} {[%emt 00:00:23]} 15. Bc4+ {[%clk 01:21:55]} {[%emt
00:03:13]} Kh8 {[%clk 01:31:40]} {[%emt 00:00:07]} 16. e5 {[%clk 01:21:10]}
{[%emt 00:01:16]} d5 {[%clk 01:31:23]} {[%emt 00:00:47]} 17. Bf1 {[%clk
01:20:00]} {[%emt 00:01:41]} Be6 {[%clk 01:31:11]} {[%emt 00:00:35]} 18. Nb3
{[%clk 01:19:17]} {[%emt 00:01:19]} Qe7 {[%clk 01:29:55]} {[%emt 00:01:45]} 19.
Nc5 {[%clk 01:18:48]} {[%emt 00:01:01]} Nd8 {[%clk 01:28:37]} {[%emt 00:01:47]}
20. Qd2 {[%clk 01:17:42]} {[%emt 00:01:35]} Ng6 {[%clk 01:27:16]} {[%emt
00:01:52]} 21. Rac1 {[%clk 01:17:00]} {[%emt 00:01:13]} f4 {[%clk 01:27:31]}
{[%emt 00:00:14]} 22. Nd3 {[%clk 01:16:41]} {[%emt 00:00:50]} Nc6 {[%clk
01:26:03]} {[%emt 00:01:58]} 23. Nc5 {[%clk 01:17:00]} {[%emt 00:00:11]} Nd8
{[%emt 00:01:09]} 24. Rc3 {[%clk 01:16:45]} {[%emt 00:00:03]} Nh4 {[%clk
01:25:49]} {[%emt 00:00:45]} 25. Be2 {[%clk 01:14:39]} {[%emt 00:02:34]} b6
{[%clk 01:24:55]} {[%emt 00:01:27]} 26. Nb3 {[%clk 01:13:35]} {[%emt 00:01:35]}
c6 {[%clk 01:24:22]} {[%emt 00:01:02]} 27. Rec1 {[%clk 01:13:39]} {[%emt
00:00:25]} Bd7 {[%clk 01:20:14]} {[%emt 00:04:37]} 1/2-1/2

[Event "NJSK 2021 Jeugd C"]
[Site "Almelo, Netherlands"]
[Date "2021.08.03"]
[Round "4.10"]
[White "Krylov, Philippe"]
[Black "Lopes, Samuel"]
[Result "1-0"]
[TimeControl "90min + 30sec/move"]
[WhiteElo "1339"]
[BlackElo "1124"]

1. d4 {[%clk 01:30:58]} {[%emt 00:00:02]} Nf6 {[%clk 01:30:52]} {[%emt
00:00:07]} 2. c4 {[%clk 01:31:19]} {[%emt 00:00:10]} g6 {[%clk 01:31:14]}
{[%emt 00:00:06]} 3. Nc3 {[%clk 01:31:45]} {[%emt 00:00:06]} Bg7 {[%clk
01:31:31]} {[%emt 00:00:13]} 4. e4 {[%clk 01:32:01]} {[%emt 00:00:13]} d6
{[%clk 01:31:52]} {[%emt 00:00:09]} 5. f3 {[%clk 01:32:19]} {[%emt 00:00:13]}
Nfd7 {[%clk 01:32:04]} {[%emt 00:00:17]} 6. Be3 {[%clk 01:30:28]} {[%emt
00:02:22]} e5 {[%clk 01:31:58]} {[%emt 00:00:36]} 7. d5 {[%clk 01:30:38]}
{[%emt 00:00:21]} Bh6 {[%clk 01:32:09]} {[%emt 00:00:18]} 8. Qd2 {[%clk
01:29:56]} {[%emt 00:01:11]} Bxe3 {[%clk 01:30:48]} {[%emt 00:01:51]} 9. Qxe3
{[%clk 01:30:19]} {[%emt 00:00:08]} a5 {[%clk 01:30:47]} {[%emt 00:00:31]} 10.
Bd3 {[%clk 01:29:59]} {[%emt 00:00:49]} O-O {[%clk 01:30:24]} {[%emt 00:00:53]}
11. Nge2 {[%clk 01:30:04]} {[%emt 00:00:26]} Na6 {[%clk 01:30:32]} {[%emt
00:00:22]} 12. Bc2 {[%clk 01:29:27]} {[%emt 00:01:07]} c6 {[%clk 01:30:10]}
{[%emt 00:00:52]} 13. a3 {[%clk 01:28:05]} {[%emt 00:01:52]} Qb6 {[%clk
01:29:50]} {[%emt 00:00:49]} 14. Qxb6 {[%clk 01:28:03]} {[%emt 00:00:31]} Nxb6
{[%clk 01:30:10]} {[%emt 00:00:11]} 15. b3 {[%clk 01:27:42]} {[%emt 00:00:52]}
Bd7 {[%clk 01:29:19]} {[%emt 00:01:20]} 16. O-O {[%clk 01:27:23]} {[%emt
00:00:50]} c5 {[%clk 01:29:19]} {[%emt 00:00:29]} 17. Nb5 {[%clk 01:23:09]}
{[%emt 00:04:44]} Bxb5 {[%clk 01:28:13]} {[%emt 00:01:36]} 18. cxb5 {[%clk
01:23:34]} {[%emt 00:00:05]} Nc7 {[%clk 01:27:52]} {[%emt 00:00:52]} 19. a4
{[%clk 01:23:46]} {[%emt 00:00:19]} Nd7 {[%clk 01:27:28]} {[%emt 00:00:53]} 20.
Bd3 {[%clk 01:23:34]} {[%emt 00:00:42]} b6 {[%clk 01:26:45]} {[%emt 00:01:13]}
21. Nc3 {[%clk 01:23:22]} {[%emt 00:00:41]} f5 {[%clk 01:25:56]} {[%emt
00:01:19]} 22. Rae1 {[%clk 01:22:50]} {[%emt 00:01:03]} f4 {[%clk 01:25:54]}
{[%emt 00:00:32]} 23. Nb1 {[%clk 01:22:49]} {[%emt 00:00:31]} g5 {[%clk
01:24:35]} {[%emt 00:01:48]} 24. Na3 {[%clk 01:22:47]} {[%emt 00:00:32]} h5
{[%clk 01:24:06]} {[%emt 00:00:59]} 25. Nc4 {[%clk 01:22:57]} {[%emt 00:00:21]}
Rf6 {[%clk 01:24:04]} {[%emt 00:00:32]} 26. Kf2 {[%clk 01:23:07]} {[%emt
00:00:20]} h4 {[%clk 01:23:42]} {[%emt 00:00:51]} 27. Rh1 {[%clk 01:22:29]}
{[%emt 00:01:09]} Kf7 {[%clk 01:23:32]} {[%emt 00:00:39]} 28. Reg1 {[%clk
01:22:23]} {[%emt 00:00:36]} Rg8 {[%clk 01:23:01]} {[%emt 00:01:01]} 29. Be2
{[%clk 01:20:15]} {[%emt 00:02:38]} Ne8 {[%clk 01:21:32]} {[%emt 00:01:59]} 30.
g3 {[%clk 01:12:59]} {[%emt 00:07:47]} Rfg6 {[%clk 01:18:25]} {[%emt 00:03:37]}
31. gxh4 {[%clk 01:11:59]} {[%emt 00:01:30]} gxh4 {[%emt 00:00:23]} 32. Rxg6
{[%clk 01:12:17]} {[%emt 00:00:10]} Rxg6 {[%clk 01:18:54]} {[%emt 00:00:10]} 33.
Rg1 {[%clk 01:12:43]} {[%emt 00:00:04]} Rxg1 {[%clk 01:12:32]} {[%emt
00:06:52]} 34. Kxg1 {[%clk 01:13:07]} {[%emt 00:00:06]} Kf6 {[%clk 01:12:45]}
{[%emt 00:00:17]} 35. Bf1 {[%clk 01:13:24]} {[%emt 00:00:13]} Ke7 {[%clk
01:12:32]} {[%emt 00:00:42]} 36. Bh3 {[%clk 01:13:30]} {[%emt 00:00:24]} Nef6
{[%clk 01:12:00]} {[%emt 00:01:02]} 37. Be6 {[%clk 01:13:10]} {[%emt 00:00:51]}
Nf8 {[%clk 01:09:54]} {[%emt 00:02:35]} 38. Bh3 {[%clk 01:12:53]} {[%emt
00:00:47]} N8d7 {[%clk 01:10:07]} {[%emt 00:00:18]} 39. Bf5 {[%clk 01:13:11]}
{[%emt 00:00:12]} Kf7 {[%clk 00:59:10]} {[%emt 00:11:25]} 40. Nxd6+ {[%clk
01:13:25]} {[%emt 00:00:17]} Kg7 {[%clk 00:59:16]} {[%emt 00:00:24]} 41. Bxd7
{[%clk 01:12:54]} {[%emt 00:01:02]} Nxd7 {[%clk 00:59:24]} {[%emt 00:00:21]} 42.
Nf5+ {[%clk 01:13:15]} {[%emt 00:00:09]} Kh7 {[%emt 00:01:04]} 43. Nxh4 {[%clk
01:13:34]} Kh6 {[%clk 00:59:53]} {[%emt 00:00:26]} 44. Nf5+ {[%clk 01:13:53]}
{[%emt 00:00:12]} Kg5 {[%clk 00:59:56]} {[%emt 00:00:27]} 45. Nd6 {[%clk
01:13:58]} {[%emt 00:00:26]} Kh4 {[%clk 00:59:44]} {[%emt 00:00:41]} 46. Kg2
{[%clk 01:14:20]} {[%emt 00:00:08]} Nf6 {[%clk 00:58:05]} {[%emt 00:02:08]} 47.
Nc4 {[%clk 01:14:31]} {[%emt 00:00:20]} Nd7 {[%clk 00:58:17]} {[%emt 00:00:18]}
48. h3 {[%clk 01:14:55]} {[%emt 00:00:06]} Kh5 {[%clk 00:58:20]} {[%emt
00:00:27]} 49. Nd6 {[%clk 01:15:12]} {[%emt 00:00:13]} Nf6 {[%clk 00:58:14]}
{[%emt 00:00:36]} 50. Nf5 {[%clk 01:15:27]} {[%emt 00:00:15]} Nd7 {[%clk
00:57:58]} {[%emt 00:00:45]} 51. h4 {[%clk 01:15:50]} {[%emt 00:00:09]} Nf6
{[%clk 00:58:02]} {[%emt 00:00:24]} 52. Kh3 {[%clk 01:16:12]} {[%emt 00:00:09]}
Nd7 {[%clk 00:58:05]} {[%emt 00:00:26]} 53. Ne7 {[%clk 01:14:40]} {[%emt
00:02:01]} Nf6 {[%clk 00:58:11]} {[%emt 00:00:26]} 54. Nf5 {[%clk 01:14:38]}
{[%emt 00:00:32]} Nd7 {[%clk 00:58:16]} {[%emt 00:00:24]} 55. Kg2 {[%clk
01:14:55]} {[%emt 00:00:11]} Kg6 {[%clk 00:58:01]} {[%emt 00:00:46]} 56. Kh2
{[%clk 01:15:18]} {[%emt 00:00:07]} Kh5 {[%clk 00:58:17]} {[%emt 00:00:15]} 57.
Kh3 {[%clk 01:15:33]} {[%emt 00:00:15]} Nf6 {[%clk 00:58:24]} {[%emt 00:02:23]}
58. Nd6 {[%clk 01:15:55]} {[%emt 00:00:08]} Nd7 {[%clk 00:58:36]} {[%emt
00:00:18]} 59. Nc4 {[%clk 01:16:11]} {[%emt 00:00:15]} Kg6 {[%clk 00:58:27]}
{[%emt 00:00:38]} 60. Nd6 {[%clk 01:14:27]} {[%emt 00:02:15]} Kh5 {[%clk
00:58:49]} {[%emt 00:00:08]} 61. Ne8 {[%clk 01:14:47]} {[%emt 00:00:11]} Nb8
{[%clk 00:57:43]} {[%emt 00:01:35]} 62. Nf6+ {[%clk 01:06:58]} {[%emt
00:08:18]} Kg6 {[%clk 00:57:56]} {[%emt 00:00:18]} 63. Ne8 {[%clk 01:03:55]}
{[%emt 00:03:33]} Kh5 {[%clk 00:58:00]} {[%emt 00:00:25]} 64. Nd6 {[%clk
01:02:40]} {[%emt 00:01:46]} Nd7 {[%clk 00:58:00]} {[%emt 00:00:29]} 65. Nc4
{[%clk 01:01:22]} {[%emt 00:01:49]} Nb8 {[%clk 00:58:00]} {[%emt 00:00:30]} 66.
Nxe5 {[%clk 01:01:33]} {[%emt 00:00:18]} Kh6 {[%clk 00:58:12]} {[%emt
00:00:18]} 67. Kg4 {[%clk 01:01:57]} {[%emt 00:00:07]} Kh7 {[%clk 00:58:22]}
{[%emt 00:00:19]} 68. d6 {[%clk 01:02:19]} {[%emt 00:00:09]} c4 {[%clk
00:58:37]} {[%emt 00:00:15]} 69. bxc4 {[%clk 01:02:42]} {[%emt 00:00:07]} Kg7
{[%clk 00:59:01]} {[%emt 00:00:05]} 70. d7 {[%clk 01:03:06]} {[%emt 00:00:07]}
Nxd7 {[%clk 00:59:25]} {[%emt 00:00:06]} 71. Nxd7 {[%clk 01:03:28]} {[%emt
00:00:07]} Kg6 {[%clk 00:59:52]} {[%emt 00:00:03]} 72. Nxb6 {[%clk 01:03:53]}
{[%emt 00:00:06]} Kf6 {[%clk 01:00:11]} {[%emt 00:00:10]} 73. c5 {[%clk
01:04:15]} {[%emt 00:00:09]} Ke6 {[%clk 01:00:23]} {[%emt 00:00:17]} 74. c6
{[%clk 01:04:27]} {[%emt 00:00:18]} Kd6 {[%clk 01:00:38]} {[%emt 00:00:15]} 75.
e5+ {[%clk 01:04:34]} {[%emt 00:00:23]} Kc7 {[%clk 01:00:50]} {[%emt 00:00:18]}
76. e6 {[%clk 01:04:51]} {[%emt 00:00:13]} Kd6 {[%clk 01:01:13]} {[%emt
00:00:07]} 77. e7 {[%clk 01:04:18]} {[%emt 00:01:03]} Kxe7 {[%clk 01:01:35]}
{[%emt 00:00:08]} 78. c7 {[%clk 01:04:41]} {[%emt 00:00:07]} Kd6 {[%clk
01:02:00]} {[%emt 00:00:04]} 79. c8=Q {[%clk 01:04:54]} {[%emt 00:00:17]} Ke7
{[%clk 01:02:27]} {[%emt 00:00:03]} 80. Qd7+ {[%clk 01:05:00]} {[%emt
00:00:24]} Kf6 {[%clk 01:02:44]} {[%emt 00:00:14]} 81. Qd6+ {[%emt 00:01:06]}
Kf7 {[%clk 01:02:59]} 82. Kg5 {[%clk 01:05:01]} {[%emt 00:00:07]} Kg8 {[%clk
01:03:11]} {[%emt 00:00:18]} 83. Qe7 {[%clk 01:05:22]} {[%emt 00:00:09]} Kh8
{[%clk 01:03:33]} {[%emt 00:00:07]} 84. Kg6 {[%clk 01:05:47]} {[%emt 00:00:04]}
Kg8 {[%clk 01:04:01]} {[%emt 00:00:02]} 85. Qe8# {[%clk 01:05:40]} {[%emt
00:00:08]} 1-0